fUST/lending_fUST_20250811
["ID","MTS","AMOUNT","RATE_DAILY","PERIOD"]
[378406551,1754847038506,-215.94527272,0.00020775,2]
[378406553,1754847038516,-460.0,0.00020775,2]
[378406555,1754847038525,-460.0,0.00020775,2]
[378406557,1754847038534,-460.0,0.00020775,2]
[378406559,1754847038543,-506.82,0.00020775,2]
[378406561,1754847038552,-460.0,0.00020775,2]
[378406563,1754847038562,-460.0,0.00020775,2]
[378406565,1754847038571,-460.0,0.00020775,2]
[378406567,1754847038580,-460.0,0.00020775,2]
[378406569,1754847038589,-460.0,0.00020775,2]
[378406571,1754847038599,-460.0,0.00020775,2]
[378406573,1754847038608,-460.0,0.00020775,2]
[378406575,1754847038617,-470.06158457,0.00020775,2]
[378406577,1754847038627,-236.90052705,0.00020775,2]
[378406579,1754847038636,-1128.77,0.00020775,2]
[378406581,1754847038645,-460.0,0.00020775,2]
[378406583,1754847038655,-460.0,0.00020775,2]
[378406585,1754847038665,-460.0,0.00020775,2]
[378406588,1754847038674,-460.0,0.00020775,2]
[378406589,1754847038683,-460.0,0.00020775,2]
[378406591,1754847038693,-460.0,0.00020775,2]
[378406593,1754847038703,-460.0,0.00020775,2]
[378406595,1754847038713,-460.0,0.00020775,2]
[378406597,1754847038722,-460.0,0.00020775,2]
[378406599,1754847038732,-461.90077487,0.00020775,2]
[378406601,1754847038741,-461.39296321,0.00020775,2]
[378406603,1754847038750,-460.0,0.00020775,2]
[378406605,1754847038759,-460.0,0.00020775,2]
[378406607,1754847038768,-460.0,0.00020775,2]
[378406609,1754847038778,-187.05103336,0.00020775,2]
[378406611,1754847038787,-460.0,0.00020775,2]
[378406613,1754847038797,-2384.94764114,0.00020775,2]
[378406615,1754847038806,-460.0,0.00020776,2]
[378406617,1754847038815,-460.0,0.00020776,2]
[378406619,1754847038824,-460.0,0.00020776,2]
[378406621,1754847038834,-460.0,0.00020776,2]
[378406623,1754847038843,-460.0,0.00020776,2]
[378406625,1754847038852,-276.66995422,0.00020776,2]
[378406627,1754847038862,-460.0,0.00020776,2]
[378406629,1754847038871,-460.0,0.00020776,2]
[378406631,1754847038881,-460.0,0.00020776,2]
[378406633,1754847038891,-460.0,0.00020776,2]
[378406635,1754847038901,-460.0,0.00020776,2]
[378406637,1754847038910,-181.62303124,0.00020776,2]
[378406639,1754847038919,-460.0,0.00020776,2]
[378406641,1754847038928,-460.51288783,0.00020776,2]
[378406643,1754847038939,-460.0,0.00020776,2]
[378406645,1754847038949,-468.67217256,0.00020776,2]
[378406647,1754847038958,-460.87794667,0.00020776,2]
[378406649,1754847038968,-460.0,0.00020776,2]
[378406651,1754847038977,-462.36799033,0.00020776,2]
[378406653,1754847038986,-460.0,0.00020776,2]
[378406655,1754847038995,-460.0,0.00020776,2]
[378406657,1754847039005,-460.0,0.00020776,2]
[378406659,1754847039014,-460.0,0.00020776,2]
[378406661,1754847039023,-460.0,0.00020776,2]
[378406663,1754847039032,-460.0,0.00020776,2]
[378406665,1754847039041,-460.0,0.00020776,2]
[378406667,1754847039050,-460.0,0.00020776,2]
[378406669,1754847039059,-460.0,0.00020776,2]
[378406671,1754847039068,-460.0,0.00020776,2]
[378406673,1754847039079,-460.0,0.00020776,2]
[378406675,1754847039088,-460.0,0.00020776,2]
[378406677,1754847039097,-460.0,0.00020776,2]
[378406679,1754847039106,-460.0,0.00020776,2]
[378406681,1754847039115,-460.0,0.00020776,2]
[378406683,1754847039125,-462.74594076,0.00020776,2]
[378406685,1754847039134,-460.0,0.00020776,2]
[378406687,1754847039144,-460.0,0.00020776,2]
[378406689,1754847039154,-397.97,0.00020776,2]
[378406690,1754847039163,-809.06,0.00020776,2]
[378406692,1754847039174,-460.0,0.00020776,2]
[378406695,1754847039184,-460.0,0.00020776,2]
[378406696,1754847039193,-460.0,0.00020776,2]
[378406698,1754847039203,-460.0,0.00020776,2]
[378406700,1754847039212,-460.0,0.00020776,2]
[378406702,1754847039221,-460.0,0.00020776,2]
[378406704,1754847039230,-460.0,0.00020776,2]
[378406706,1754847039239,-460.0,0.00020776,2]
[378406708,1754847039248,-460.0,0.00020776,2]
[378406710,1754847039257,-460.0,0.00020776,2]
[378406712,1754847039266,-460.0,0.00020776,2]
[378406714,1754847039275,-1012.3,0.00020776,2]
[378406716,1754847039284,-460.0,0.00020776,2]
[378406718,1754847039293,-460.0,0.00020776,2]
[378406720,1754847039302,-464.28572783,0.00020776,2]
[378406722,1754847039311,-538.1,0.00021049,2]
[378406724,1754847039320,-460.0,0.00021049,2]
[378406726,1754847039329,-460.0,0.00021049,2]
[378406728,1754847039339,-460.0,0.00021049,2]
[378406730,1754847039348,-506.82,0.00021049,2]
[378406732,1754847039357,-168.81,0.00021049,2]
[378406734,1754847039366,-1128.77,0.00021049,2]
[378406737,1754847039376,-460.0,0.00021049,2]
[378406739,1754847039385,-460.0,0.00021049,2]
[378406741,1754847039395,-460.0,0.0002105,2]
[378406743,1754847039404,-809.06,0.0002105,2]
[378406745,1754847039413,-460.0,0.0002105,2]
[378406747,1754847039427,-460.0,0.0002105,2]
[378406749,1754847039436,-460.0,0.0002105,2]
[378406751,1754847039445,-460.0,0.0002105,2]
[378406753,1754847039454,-460.0,0.0002105,2]
[378406755,1754847039465,-1012.3,0.0002105,2]
[378406757,1754847039474,-460.0,0.0002105,2]
[378406760,1754847039483,-460.0,0.0002105,2]
[378406762,1754847039493,-500.0,0.00021085,2]
[378406764,1754847039502,-500.0,0.0002109,2]
[378406766,1754847039511,-500.0,0.00021157,2]
[378406768,1754847039521,-500.0,0.00021157,2]
[378406770,1754847039530,-500.0,0.00021157,2]
[378406772,1754847039539,-500.0,0.00021157,2]
[378406775,1754847039548,-500.0,0.00021157,2]
[378406777,1754847039557,-500.0,0.00021174,2]
[378406780,1754847039566,-513.54100745,0.00021174,2]
[378406782,1754847039575,-500.0,0.00021178,2]
[378406784,1754847039585,-500.0,0.00021178,2]
[378406786,1754847039595,-500.0,0.00021178,2]
[378406788,1754847039605,-500.0,0.00021178,2]
[378406790,1754847039614,-500.0,0.00021178,2]
[378406792,1754847039622,-478.34941767,0.00021178,2]
[378406794,1754847039631,-500.0,0.00021178,2]
[378406796,1754847039641,-500.0,0.00021189,2]
[378406798,1754847039651,-500.0,0.00021189,2]
[378406800,1754847039660,-500.0,0.00021189,2]
[378406802,1754847039669,-500.0,0.000212,2]
[378406804,1754847039678,-500.0,0.000212,2]
[378406806,1754847039688,-500.0,0.000212,2]
[378406808,1754847039697,-510.46798977,0.00021212,2]
[378406810,1754847039706,-500.0,0.00021212,2]
[378406812,1754847039715,-500.0,0.00021212,2]
[378406814,1754847039724,-500.0,0.00021223,2]
[378406816,1754847039734,-179.39,0.00021269,10]
[378406818,1754847039742,-896.99,0.00021269,10]
[378406819,1754847039752,-231.96268195,0.00021279,2]
[378406821,1754847039761,-461.62346162,0.00021279,2]
[378406824,1754847039771,-216.64838636,0.00021279,2]
[378406825,1754847039780,-160.0,0.00021279,2]
[378406827,1754847039789,-12668.57659669,0.00021279,2]
[378406829,1754847039799,-215.44987349,0.00021279,2]
[378406832,1754847039809,-160.0,0.00021279,2]
[378406833,1754847039818,-843.0869304,0.00021279,2]
[378406835,1754847039828,-949.05013633,0.00021321,2]
[378406837,1754847039837,-500.0,0.00021321,2]
[378406839,1754847039847,-538.1,0.00021323,2]
[378406842,1754847039857,-460.0,0.00021323,2]
[378406844,1754847039866,-460.0,0.00021323,2]
[378406845,1754847039875,-460.0,0.00021323,2]
[378406847,1754847039884,-506.82,0.00021323,2]
[378406849,1754847039894,-1128.77,0.00021323,2]
[378406851,1754847039903,-460.0,0.00021323,2]
[378406853,1754847039912,-460.0,0.00021323,2]
[378406855,1754847039921,-597.52,0.00021324,2]
[378406857,1754847039931,-809.06,0.00021324,2]
[378406859,1754847039940,-460.0,0.00021324,2]
[378406861,1754847039949,-460.0,0.00021324,2]
[378406863,1754847039959,-460.0,0.00021324,2]
[378406865,1754847039968,-1012.3,0.00021324,2]
[378406867,1754847039977,-460.0,0.00021324,2]
[378406869,1754847039987,-460.0,0.00021324,2]
[378406871,1754847039997,-500.0,0.00021336,2]
[378406873,1754847040007,-538.1,0.00021597,2]
[378406875,1754847040016,-460.0,0.00021597,2]
[378406877,1754847040026,-460.0,0.00021597,2]
[378406879,1754847040035,-460.0,0.00021597,2]
[378406880,1754847040045,-506.82,0.00021597,2]
[378406881,1754847040054,-1128.77,0.00021597,2]
[378406882,1754847040063,-460.0,0.00021597,2]
[378406883,1754847040073,-460.0,0.00021597,2]
[378406884,1754847040083,-809.06,0.00021598,2]
[378406885,1754847040092,-460.0,0.00021598,2]
[378406886,1754847040101,-460.0,0.00021598,2]
[378406887,1754847040110,-501.75674561,0.00021598,2]
[378406888,1754847040119,-1012.3,0.00021598,2]
[378406889,1754847040129,-460.0,0.00021598,2]
[378406890,1754847040138,-460.0,0.00021598,2]
[378406891,1754847040147,-507.42146889,0.00021704,2]
[378406892,1754847040157,-316.53490844,0.00021704,2]
[378406893,1754847040167,-1107.01394042,0.00021722,2]
[378406894,1754847040176,-246.76763945,0.00021726,2]
[378406895,1754847040186,-500.0,0.00021726,2]
[378406896,1754847040195,-164.89369169,0.00021737,2]
[378406897,1754847040204,-1000.0,0.00021748,2]
[378406898,1754847040214,-422.97070679,0.00021771,2]
[378406899,1754847040223,-200.0,0.0002181,15]
[378406900,1754847040233,-300.0,0.0002181,15]
[378406901,1754847040242,-538.1,0.00021871,2]
[378406902,1754847040251,-460.0,0.00021871,2]
[378406903,1754847040260,-345.84953966,0.00021871,2]
[378406904,1754847040269,-460.0,0.00021871,2]
[378406905,1754847040278,-506.82,0.00021871,2]
[378406906,1754847040287,-1128.77,0.00021871,2]
[378406907,1754847040297,-460.0,0.00021871,2]
[378406908,1754847040306,-460.0,0.00021871,2]
[378406909,1754847040315,-809.06,0.00021872,2]
[378406910,1754847040324,-408.84,0.00021872,2]
[378406911,1754847040333,-460.0,0.00021872,2]
[378406912,1754847040342,-1012.3,0.00021872,2]
[378406914,1754847040351,-460.0,0.00021872,2]
[378406916,1754847040360,-460.0,0.00021872,2]
[378406918,1754847040370,-705.36,0.00021907,3]
[378406920,1754847040379,-500.0,0.00021917,2]
[378406922,1754847040388,-500.0,0.00021917,2]
[378406924,1754847040398,-500.0,0.00021917,2]
[378406926,1754847040407,-500.0,0.00021917,2]
[378406928,1754847040419,-500.0,0.00021917,2]
[378406941,1754847040533,-6861.12,0.00021917,2]
[378406943,1754847040550,-1327.5605296,0.00021918,7]
[378406944,1754847040559,-200.0,0.00021918,2]
[378406946,1754847040569,-352.68,0.0002199,3]
[378406948,1754847040578,-153.0,0.00022,2]
[378406951,1754847040588,-185.0,0.00022,2]
[378406952,1754847040597,-1715.66113799,0.00022,2]
[378406954,1754847040609,-344.75,0.00022,2]
[378406956,1754847040626,-2518.59,0.00022,2]
[378406958,1754847040635,-525.0,0.00022,2]
[378406960,1754847040646,-538.1,0.00022145,2]
[378406962,1754847040655,-587.93164712,0.00022145,2]
[378406964,1754847040664,-460.0,0.00022145,2]
[378406966,1754847040674,-506.82,0.00022145,2]
[378406968,1754847040683,-1128.77,0.00022145,2]
[378406970,1754847040692,-460.0,0.00022145,2]
[378406972,1754847040702,-460.0,0.00022145,2]
[378406974,1754847040711,-500.0,0.00022146,2]
[378406976,1754847040720,-809.06,0.00022146,2]
[378406978,1754847040729,-460.0,0.00022146,2]
[378406980,1754847040739,-1012.3,0.00022146,2]
[378406982,1754847040748,-252.80393231,0.00022146,2]
[378406984,1754847040757,-460.0,0.00022146,2]
[378406986,1754847040767,-525.0,0.00022192,7]
[378406988,1754847040776,-192.48890501,0.000222,2]
[378406990,1754847040785,-153.0,0.00022208,2]
[378406992,1754847040795,-153.0,0.00022208,2]
[378406994,1754847040804,-1500.0,0.00022296,2]
[378406996,1754847040813,-538.1,0.00022419,2]
[378406998,1754847040824,-460.0,0.00022419,2]
[378407000,1754847040834,-506.82,0.00022419,2]
[378407002,1754847040843,-1128.77,0.00022419,2]
[378407004,1754847040852,-460.0,0.00022419,2]
[378407006,1754847040862,-460.0,0.00022419,2]
[378407008,1754847040871,-500.0,0.0002242,2]
[378407010,1754847040881,-809.06,0.0002242,2]
[378407012,1754847040890,-460.0,0.0002242,2]
[378407014,1754847040900,-1012.3,0.0002242,2]
[378407016,1754847040909,-460.0,0.0002242,2]
[378407018,1754847040917,-1623.0,0.00022585,2]
[378407020,1754847040927,-2335.82288224,0.00022601,2]
[378407022,1754847040936,-353.72874864,0.00022603,2]
[378407024,1754847040945,-538.1,0.00022693,2]
[378407026,1754847040955,-460.0,0.00022693,2]
[378407028,1754847040964,-506.82,0.00022693,2]
[378407030,1754847040973,-1128.77,0.00022693,2]
[378407032,1754847040982,-460.0,0.00022693,2]
[378407034,1754847040993,-460.0,0.00022693,2]
[378407036,1754847041002,-500.0,0.00022694,2]
[378407038,1754847041011,-809.06,0.00022694,2]
[378407040,1754847041021,-460.0,0.00022694,2]
[378407041,1754847041029,-1012.3,0.00022694,2]
[378407042,1754847041038,-460.0,0.00022694,2]
[378407043,1754847041048,-151.0,0.00022701,2]
[378407044,1754847041057,-151.0,0.00022701,2]
[378407045,1754847041067,-151.0,0.00022701,2]
[378407046,1754847041076,-151.0,0.00022701,2]
[378407047,1754847041086,-151.0,0.00022701,2]
[378407048,1754847041096,-151.0,0.00022701,2]
[378407049,1754847041106,-151.0,0.00022701,2]
[378407050,1754847041115,-151.0,0.00022701,2]
[378407051,1754847041124,-151.0,0.00022701,2]
[378407052,1754847041134,-151.0,0.00022701,2]
[378407053,1754847041144,-151.0,0.00022701,2]
[378407054,1754847041153,-151.0,0.00022701,2]
[378407055,1754847041162,-151.0,0.00022701,2]
[378407056,1754847041171,-151.0,0.00022701,2]
[378407057,1754847041180,-151.0,0.00022701,2]
[378407058,1754847041189,-151.0,0.00022701,2]
[378407059,1754847041199,-151.0,0.00022701,2]
[378407060,1754847041208,-1623.0,0.00022895,2]
[378407061,1754847041217,-2335.82288224,0.00022901,2]
[378407062,1754847041227,-5888.0,0.00022916,2]
[378407063,1754847041236,-160.0,0.00022933,2]
[378407064,1754847041246,-538.1,0.00022967,2]
[378407065,1754847041255,-460.0,0.00022967,2]
[378407066,1754847041264,-506.82,0.00022967,2]
[378407067,1754847041273,-1128.77,0.00022967,2]
[378407068,1754847041282,-460.0,0.00022967,2]
[378407069,1754847041292,-460.0,0.00022967,2]
[378407070,1754847041301,-500.0,0.00022968,2]
[378407071,1754847041311,-809.06,0.00022968,2]
[378407072,1754847041321,-460.0,0.00022968,2]
[378407073,1754847041332,-1012.3,0.00022968,2]
[378407074,1754847041342,-460.0,0.00022968,2]
[378407075,1754847041352,-4056.80004899,0.0002298,2]
[378407076,1754847041361,-204.93336379,0.00023,8]
[378407077,1754847041371,-5041.66872044,0.00023,2]
[378407078,1754847041380,-250.0,0.00023,2]
[378407079,1754847041390,-193.93783112,0.00023,2]
[378407080,1754847041399,-1359.7280243,0.00023,2]
[378407081,1754847041409,-160.0,0.00023,2]
[378407082,1754847041421,-1340.43618727,0.00023,2]
[378407083,1754847041431,-185.0,0.00023014,7]
[378407084,1754847041440,-525.0,0.00023014,7]
[378407085,1754847041449,-1068.9,0.00023097,2]
[378407086,1754847041460,-2518.59,0.00023182,2]
[378407087,1754847041470,-184.37172481,0.00023183,2]
[378407088,1754847041480,-2335.82288224,0.00023201,2]
[378407089,1754847041489,-538.1,0.00023241,2]
[378407090,1754847041499,-460.0,0.00023241,2]
[378407091,1754847041508,-506.82,0.00023241,2]
[378407092,1754847041517,-1128.77,0.00023241,2]
[378407093,1754847041526,-460.0,0.00023241,2]
[378407094,1754847041536,-460.0,0.00023241,2]
[378407095,1754847041546,-500.0,0.00023242,2]
[378407096,1754847041555,-809.06,0.00023242,2]
[378407097,1754847041565,-460.0,0.00023242,2]
[378407098,1754847041574,-1012.3,0.00023242,2]
[378407099,1754847041583,-460.0,0.00023242,2]
[378407100,1754847041592,-1410.72,0.00023277,3]
[378407101,1754847041602,-5888.0,0.00023286,2]
[378407102,1754847041611,-151.0,0.000233,5]
[378407103,1754847041621,-5888.0,0.00023336,2]
[378407104,1754847041630,-256.77,0.00023342,3]
[378407105,1754847041641,-705.36,0.0002336,3]
[378407106,1754847041650,-260.0,0.00023481,2]
[378407107,1754847041660,-151.0,0.000235,5]
[378407108,1754847041669,-1000.0,0.000235,2]
[378407109,1754847041679,-151.0,0.000235,5]
[378407110,1754847041689,-2335.82288224,0.000235,2]
[378407111,1754847041701,-538.1,0.00023515,2]
[378407112,1754847041715,-460.0,0.00023515,2]
[378407113,1754847041728,-506.82,0.00023515,2]
[378407114,1754847041740,-1128.77,0.00023515,2]
[378407115,1754847041753,-460.0,0.00023515,2]
[378407116,1754847041763,-460.0,0.00023515,2]
[378407117,1754847041774,-500.0,0.00023516,2]
[378407118,1754847041787,-809.06,0.00023516,2]
[378407119,1754847041799,-460.0,0.00023516,2]
[378407120,1754847041811,-1012.3,0.00023516,2]
[378407121,1754847041823,-460.0,0.00023516,2]
[378407122,1754847041836,-151.0,0.000236,8]
[378407123,1754847041849,-11258.3686943,0.00023669,2]
[378407124,1754847041861,-500.0,0.00023698,2]
[378407125,1754847041873,-500.0,0.00023698,2]
[378407126,1754847041885,-500.0,0.00023698,2]
[378407127,1754847041899,-263.34175626,0.00023698,2]
[378407128,1754847041911,-500.0,0.00023698,2]
[378407129,1754847041922,-500.0,0.00023698,2]
[378407130,1754847041934,-500.0,0.00023698,2]
[378407131,1754847041946,-500.0,0.00023698,2]
[378407132,1754847041958,-500.0,0.00023698,2]
[378407133,1754847041968,-500.0,0.00023698,2]
[378407134,1754847041981,-500.0,0.00023698,2]
[378407135,1754847041993,-500.0,0.00023698,2]
[378407136,1754847042004,-500.0,0.00023698,2]
[378407137,1754847042016,-500.0,0.00023698,2]
[378407138,1754847042026,-500.0,0.00023698,2]
[378407139,1754847042036,-537.2281634,0.00023698,2]
[378407140,1754847042047,-500.0,0.00023698,2]
[378407141,1754847042058,-500.0,0.00023698,2]
[378407142,1754847042070,-500.0,0.00023698,2]
[378407143,1754847042082,-500.0,0.00023698,2]
[378407144,1754847042093,-500.0,0.00023698,2]
[378407145,1754847042106,-35634.0,0.000237,2]
[378407146,1754847042117,-151.0,0.000237,5]
[378407147,1754847042130,-151.0,0.000237,10]
[378407148,1754847042142,-151.0,0.000237,7]
[378407149,1754847042155,-192.48890501,0.00023726,2]
[378407150,1754847042167,-11258.3686943,0.00023735,2]
[378407151,1754847042180,-14760.29746748,0.00023767,2]
[378407153,1754847042315,-1816.7,0.00023767,2]
[378407227,1754847043047,-5000.0,0.00020155,2]
[378407229,1754847043058,-4859.96,0.00021917,2]
[378407231,1754847043068,-64690.90079213,0.00023767,2]
[378407241,1754847043137,-118.59,0.00023767,2]
[378407566,1754847046190,-421.92818453,0.00020775,2]
[378407569,1754847046202,-38.07181547,0.00020775,2]
[378407571,1754847046211,-220.60052629,0.00021049,2]
[378407573,1754847046223,-239.39947371,0.00021049,2]
[378407575,1754847046236,-678.21292927,0.00023767,2]
[378407583,1754847046297,-460.0,0.00021323,2]
[378407585,1754847046307,-5764.48745722,0.00023767,2]
[378407596,1754847046406,-21637.12086907,0.00023767,2]
[378410576,1754847245977,1680.34798246,0.00019956,2]
[378410577,1754847246001,3319.65201754,0.00019956,2]
[378410578,1754847262690,5000.0,0.00019956,2]
[378410582,1754847409565,172.911742,0.00013699,2]
[378410583,1754847476630,1507.43624046,0.00019956,2]
[378410584,1754847476652,3492.56375954,0.00019956,2]
[378410585,1754847492382,5000.0,0.00019956,2]
[378410586,1754847508087,1507.43624046,0.00019956,2]
[378410587,1754847508109,3492.56375954,0.00019956,2]
[378410588,1754847515941,210.33741802,0.00019956,2]
[378410590,1754847525401,5000.0,0.00019956,2]
[378410591,1754847540658,1297.09882244,0.00019956,2]
[378410592,1754847540681,3702.90117756,0.00019956,2]
[378410601,1754847670452,484.2194017,0.0001995,2]
[378410602,1754847717626,5812.87942074,0.000199,2]
[378410603,1754847717648,1109.36157445,0.000199,2]
[378410604,1754847721903,5000.0,0.00019956,2]
[378410610,1754847851871,175.92141201,0.00031446,120]
[378410621,1754847916718,203.96420268,0.00019861,2]
[378410624,1754847940597,3686.67422287,0.00019761,2]
[378410625,1754847940620,10000.0,0.00019761,2]
[378410626,1754847940645,2773.31207283,0.00019761,2]
[378410627,1754847945620,5000.0,0.00019956,2]
[378410629,1754847953452,2226.68792717,0.00019956,2]
[378410630,1754847953476,2225.46582674,0.00019956,2]
[378410631,1754847961501,5000.0,0.00019956,2]
[378410632,1754847975471,212.460781,0.0001981,2]
[378410633,1754847976626,2562.07339226,0.00019956,2]
[378410634,1754847976653,2437.92660774,0.00019956,2]
[378410635,1754847992302,5000.0,0.00019956,2]
[378410636,1754848008744,2562.07339226,0.00019956,2]
[378410637,1754848008771,2437.92660774,0.00019956,2]
[378410639,1754848042090,-300.0,0.0001996,2]
[378410640,1754848042111,-300.0,0.00019961,2]
[378410641,1754848042132,-300.0,0.00019961,2]
[378410642,1754848042152,-1200.0,0.00019961,2]
[378410643,1754848042173,-1200.0,0.00019961,2]
[378410644,1754848042193,-460.0,0.00019962,2]
[378410645,1754848042214,-7765.14975881,0.00019962,2]
[378410648,1754848070837,201.444191,0.00019734,2]
[378410650,1754848111503,221.09583888,8.6e-07,2]
[378410743,1754848232421,-460.0,0.00019962,2]
[378410745,1754848232430,-460.0,0.00019962,2]
[378410747,1754848232440,-625.17945996,0.00019962,2]
[378410749,1754848232449,-940.65,0.00019962,2]
[378410751,1754848232459,-460.0,0.00019962,2]
[378410753,1754848232469,-17134.85024119,0.00019962,2]
[378410755,1754848232479,-160.0,0.0002,3]
[378410757,1754848232488,-201.649447,0.00020087,2]
[378410759,1754848232498,-225.009526,0.00020151,2]
[378410761,1754848232507,-172.911742,0.00020187,2]
[378410763,1754848232516,-1095.50652679,0.00020236,2]
[378410765,1754848232525,-460.0,0.00020236,2]
[378410768,1754848232534,-460.0,0.00020236,2]
[378410771,1754848232544,-460.0,0.00020236,2]
[378410774,1754848232553,-940.65,0.00020236,2]
[378410776,1754848232562,-460.0,0.00020236,2]
[378410778,1754848232572,-460.0,0.0002051,2]
[378410780,1754848232581,-460.0,0.0002051,2]
[378410783,1754848232590,-460.0,0.0002051,2]
[378410786,1754848232599,-940.65,0.0002051,2]
[378410789,1754848232609,-460.0,0.0002051,2]
[378410792,1754848232618,-250.86603333,0.00020675,2]
[378410795,1754848232627,-460.0,0.00020774,2]
[378410798,1754848232636,-460.0,0.00020774,2]
[378410801,1754848232645,-464.64929552,0.00020774,2]
[378410804,1754848232654,-674.22,0.00020774,2]
[378410807,1754848232664,-408.84,0.00020774,2]
[378410810,1754848232673,-843.59,0.00020774,2]
[378410813,1754848232683,-460.0,0.00020774,2]
[378410816,1754848232692,-460.0,0.00020774,2]
[378410819,1754848232701,-460.0,0.00020775,2]
[378410822,1754848232710,-460.0,0.00020784,2]
[378410824,1754848232719,-460.0,0.00020784,2]
[378410825,1754848232729,-460.0,0.00020784,2]
[378410827,1754848232738,-940.65,0.00020784,2]
[378410829,1754848232748,-460.0,0.00020784,2]
[378410830,1754848232760,-200.0,0.00020959,15]
[378410831,1754848232769,-300.0,0.00020959,15]
[378410832,1754848232778,-674.22,0.00021048,2]
[378410833,1754848232787,-843.59,0.00021048,2]
[378410834,1754848232796,-252.80393231,0.00021048,2]
[378410835,1754848232806,-460.0,0.00021048,2]
[378410836,1754848232815,-460.0,0.00021049,2]
[378410837,1754848232824,-460.0,0.00021058,2]
[378410838,1754848232836,-460.0,0.00021058,2]
[378410839,1754848232846,-460.0,0.00021058,2]
[378410840,1754848232855,-940.65,0.00021058,2]
[378410841,1754848232864,-311.63645393,0.00021058,2]
[378410842,1754848232877,-148.36354607,0.00021058,2]
[378410843,1754848232886,-460.0,0.0002128,2]
[378410844,1754848232895,-345.84953966,0.0002128,2]
[378410845,1754848232904,-81.45476344,0.0002128,2]
[378411299,1754848238132,-378.54523656,0.0002128,2]
[378411301,1754848238143,-460.0,0.0002128,2]
[378411303,1754848238152,-674.22,0.00021322,2]
[378411305,1754848238161,-843.59,0.00021322,2]
[378411307,1754848238170,-460.0,0.00021322,2]
[378411309,1754848238180,-460.0,0.00021323,2]
[378411311,1754848238189,-460.0,0.00021332,2]
[378411313,1754848238199,-460.0,0.00021332,2]
[378411315,1754848238208,-460.0,0.00021332,2]
[378411316,1754848238217,-940.65,0.00021332,2]
[378411317,1754848238227,-460.0,0.00021332,2]
[378411318,1754848238236,-12668.57659669,0.00021346,2]
[378411319,1754848238245,-160.0,0.00021349,2]
[378411320,1754848238255,-216.64838636,0.00021349,2]
[378411321,1754848238264,-160.0,0.00021349,2]
[378411322,1754848238273,-843.0869304,0.00021349,2]
[378411323,1754848238283,-160.0,0.00021349,2]
[378411324,1754848238292,-231.96268195,0.00021349,2]
[378411325,1754848238301,-461.62346162,0.00021349,2]
[378411326,1754848238310,-215.44987349,0.0002135,2]
[378411328,1754848238330,-160.0,0.0002135,2]
[378411330,1754848238340,-500.0,0.0002145,2]
[378411332,1754848238350,-500.0,0.0002145,2]
[378411334,1754848238360,-500.0,0.0002145,2]
[378411336,1754848238369,-500.0,0.0002145,2]
[378411338,1754848238379,-500.0,0.0002145,2]
[378411340,1754848238389,-500.0,0.0002145,2]